bitfinex/quotes_SOLUSD_20241213
["timestamp","ask_amount","ask_price","bid_price","bid_amount"]
[1734102837655,11.1096,225.03,224.88,8.34361605]
[1734102837656,8.34361605,224.95,224.88,8.34361605]
[1734102838161,1.6454,225.05,224.86,2.33191142]
[1734102838162,0.12549,225.02,224.91,8.34361605]
[1734102838366,1.6454,225.05,224.94,8.34361605]
[1734102838671,8.34361605,225.01,224.94,9.0101702]
[1734102839182,8.34361605,225.0,224.95,23.776884]
[1734102839381,8.34361605,224.99,224.93,23.776884]
[1734102839555,8.34361605,224.98,224.92,23.776884]
[1734102839755,8.34361605,224.99,224.92,32.78717231]
[1734102839967,11.1057,225.11,224.97,23.776884]
[1734102840168,8.34361605,225.02,224.97,23.776884]
[1734102840353,8.34361605,225.03,224.97,23.776884]
[1734102842761,0.12549,225.08,224.97,23.776884]
[1734102842960,8.34361605,225.03,224.97,23.776884]
[1734102843261,8.34361605,225.04,224.99,23.776884]
[1734102844578,8.34361605,225.05,224.99,23.776884]
[1734102844765,8.34361605,225.04,224.99,23.776884]
[1734102846480,8.34361605,225.03,224.99,23.776884]
[1734102847283,8.34361605,225.03,224.97,23.776884]
[1734102847484,8.34361605,225.02,224.97,23.776884]
[1734102847684,8.34361605,225.02,224.96,23.776884]
[1734102848087,8.34361605,225.04,224.98,23.776884]
[1734102848483,0.12549,225.08,224.99,9.01011752]
[1734102848484,8.34361605,225.06,224.99,9.01011752]
[1734102848794,11.29025814,225.13,224.99,9.01011752]
[1734102848795,1.6636,225.19,225.05,8.34361605]
[1734102849084,1.6636,225.19,225.08,8.34361605]
[1734102849600,1.6636,225.19,225.08,23.776884]
[1734102849801,1.6636,225.19,225.08,32.12050005]
[1734102850001,8.34361605,225.16,225.08,32.12050005]
[1734102850167,11.0999,225.23,225.08,32.7866544]
[1734102850168,8.34361605,225.17,225.08,32.7866544]
[1734102850366,8.34361605,225.17,225.1,8.34361605]
[1734102850566,8.34361605,225.18,225.11,8.34361605]
[1734102850868,0.12549,225.23,225.13,8.34361605]
[1734102851072,8.34361605,225.2,225.13,8.34361605]
[1734102851397,8.34361605,225.22,225.15,8.34361605]
[1734102851613,8.34361605,225.22,225.14,0.66605882]
[1734102851614,8.34361605,225.23,225.16,32.12050005]
[1734102851896,12.379564,225.31,225.18,8.34361605]
[1734102852065,8.34361605,225.25,225.19,23.776884]
[1734102852260,12.379564,225.31,225.19,32.12050005]
[1734102852601,5.867364,225.31,225.21,23.776884]
[1734102852767,8.34361605,225.24,225.2,23.776884]
[1734102853181,13.01428753,225.24,225.2,23.776884]
[1734102853683,0.12549,225.3,225.16,13.01428753]
[1734102853684,13.01428753,225.23,225.16,13.01428753]
[1734102853876,13.01428753,225.23,225.17,23.776884]
[1734102854082,13.01428753,225.28,225.16,13.68020628]
[1734102854083,13.01428753,225.22,225.16,13.68020628]
[1734102854291,13.01428753,225.23,225.17,23.776884]
[1734102854986,13.01428753,225.2,225.14,14.66978753]
[1734102855168,13.01428753,225.22,225.15,13.01428753]
[1734102855486,0.12549,225.27,225.17,13.01428753]
[1734102855709,13.01428753,225.25,225.18,13.01428753]
[1734102855987,13.01428753,225.25,225.16,0.66595808]
[1734102855988,13.01428753,225.24,225.17,13.01428753]
[1734102856163,5.867364,225.31,225.16,13.01428753]
[1734102856164,13.01428753,225.23,225.16,13.01428753]
[1734102856363,13.01428753,225.22,225.15,36.79117153]
[1734102856587,13.01428753,225.23,225.17,36.79117153]
[1734102856793,13.01428753,225.23,225.18,23.776884]
[1734102856969,13.01428753,225.24,225.18,23.776884]
[1734102857173,13.01428753,225.23,225.18,23.776884]
[1734102857573,13.01428753,225.28,225.15,23.776884]
[1734102857574,13.01428753,225.2,225.15,23.776884]
[1734102857774,13.01428753,225.2,225.14,1.6555]
[1734102858097,13.01428753,225.22,225.16,13.01428753]
[1734102858266,13.01428753,225.22,225.15,13.01428753]
[1734102858888,13.01428753,225.21,225.15,23.776884]
[1734102859085,13.01428753,225.21,225.15,13.01428753]
[1734102859402,0.12549,225.26,225.15,13.01428753]
[1734102859403,13.01428753,225.22,225.16,13.01428753]
[1734102859691,13.01428753,225.24,225.17,13.01428753]
[1734102859987,13.01428753,225.23,225.16,13.68024009]
[1734102861083,13.01428753,225.24,225.17,13.01428753]
[1734102862088,13.01428753,225.23,225.16,13.6802341]
[1734102862979,13.01428753,225.25,225.18,13.01428753]
[1734102863284,13.01428753,225.25,225.19,13.01428753]
[1734102863492,13.01428753,225.24,225.17,13.01428753]
[1734102863791,13.01428753,225.24,225.17,13.68019852]
[1734102864198,13.01428753,225.24,225.17,13.01428753]
[1734102864495,13.01428753,225.23,225.14,2.32143187]
[1734102864669,24.11188753,225.28,225.09,0.66592428]
[1734102864670,13.01428753,225.17,225.09,0.66592428]
[1734102864876,13.13977753,225.16,225.09,14.61088753]
[1734102865097,13.01428753,225.18,225.11,13.01428753]
[1734102865287,13.01428753,225.19,225.12,13.01428753]
[1734102865488,13.01428753,225.19,225.13,13.01428753]
[1734102866083,6.4549,225.27,225.12,13.01428753]
[1734102866084,0.12549,225.26,225.12,13.01428753]
[1734102866400,0.12549,225.26,225.09,1.5966]
[1734102866401,13.01428753,225.16,225.1,13.01428753]
[1734102866587,13.01428753,225.14,225.07,13.01428753]
[1734102866788,1.5822,225.22,225.04,4.33337528]
[1734102866789,13.01428753,225.11,225.05,13.01428753]
[1734102867177,13.01428753,225.12,225.05,13.01428753]
[1734102868601,0.12549,225.13,225.07,13.01428753]
[1734102868811,0.12549,225.16,225.09,13.01428753]
[1734102868812,13.01428753,225.16,225.09,13.01428753]
[1734102869105,13.01428753,225.17,225.1,13.01428753]
[1734102869397,0.12549,225.16,225.1,13.01428753]
[1734102870722,13.01428753,225.18,225.11,13.01428753]
[1734102871005,13.13977753,225.17,225.1,13.01428753]
[1734102871176,13.01428753,225.16,225.09,13.01428753]
[1734102871377,0.12549,225.15,225.09,13.01428753]
[1734102871578,13.01428753,225.18,225.11,13.01428753]
[1734102872113,26.0968,225.29,225.14,13.01428753]
[1734102872326,13.01428753,225.21,225.14,13.01428753]
[1734102872815,13.01428753,225.2,225.13,14.64018753]
[1734102873182,13.13977753,225.19,225.13,1.6259]
[1734102873400,13.01428753,225.18,225.11,13.01428753]
[1734102873814,0.12549,225.18,225.12,13.01428753]
[1734102874112,13.01428753,225.19,225.12,13.01428753]
[1734102874319,13.01428753,225.2,225.13,13.01428753]
[1734102874918,13.01428753,225.21,225.14,13.01428753]
[1734102875228,13.01428753,225.27,225.2,13.01428753]
[1734102875509,13.01428753,225.26,225.19,14.56068753]
[1734102876824,13.01428753,225.25,225.19,1.5464]
[1734102876987,0.12549,225.24,225.19,1.5464]
[1734102877188,13.13977753,225.24,225.16,13.01428753]
[1734102877399,13.01428753,225.23,225.15,1.5097]
[1734102877606,13.01428753,225.23,225.16,13.01428753]
[1734102878928,13.01428753,225.26,225.19,13.01428753]
[1734102879220,13.01428753,225.27,225.2,13.01428753]
[1734102879380,13.01428753,225.26,225.19,13.01428753]
[1734102880215,13.01428753,225.25,225.17,13.68018412]
[1734102880400,0.12549,225.24,225.17,13.01428753]
[1734102880917,0.12549,225.24,225.18,13.01428753]
[1734102881131,13.01428753,225.24,225.17,13.01428753]
[1734102881925,11.0964,225.3,225.17,13.01428753]
[1734102881926,11.0964,225.3,225.18,13.01428753]
[1734102882137,13.01428753,225.27,225.2,13.01428753]
[1734102882344,13.01428753,225.29,225.22,13.01428753]
[1734102882520,0.5341503,225.31,225.23,13.01428753]
[1734102882521,13.01428753,225.3,225.23,13.01428753]
[1734102883009,13.01428753,225.29,225.22,13.01428753]
[1734102883218,13.01428753,225.28,225.21,13.01428753]
[1734102883410,13.01428753,225.27,225.2,13.01428753]
[1734102883730,13.01428753,225.26,225.19,13.01428753]
[1734102884135,13.01428753,225.24,225.17,13.01428753]
[1734102884543,13.01428753,225.25,225.18,13.01428753]
[1734102884910,13.01428753,225.19,225.15,0.66588724]
[1734102885145,13.01428753,225.16,225.09,13.68038061]
[1734102885316,13.01428753,225.16,225.09,13.01428753]
[1734102885515,13.01428753,225.16,225.1,13.01428753]
[1734102885844,13.01428753,225.16,225.09,13.01428753]
[1734102886147,0.12549,225.25,225.07,14.56348753]
[1734102886148,13.01428753,225.14,225.07,14.56348753]
[1734102886304,13.01428753,225.14,225.08,13.01428753]
[1734102887049,13.01428753,225.14,225.07,14.56348753]
[1734102887243,13.01428753,225.12,225.06,19.25118753]
[1734102887426,13.01428753,225.11,225.04,13.01428753]
[1734102887745,13.01428753,225.13,225.07,13.01428753]
[1734102888257,13.01428753,225.13,225.06,13.01428753]
[1734102888447,13.01428753,225.14,225.08,13.01428753]
[1734102888615,13.01428753,225.14,225.07,13.01428753]
[1734102889037,13.01428753,225.13,225.06,13.01428753]
[1734102889228,13.01428753,225.13,225.07,13.01428753]
[1734102889435,13.01428753,225.14,225.08,13.01428753]
[1734102890127,0.12549,225.14,225.08,13.01428753]
[1734102890649,13.01428753,225.14,225.07,13.01428753]
[1734102891828,13.01428753,225.15,225.08,13.01428753]
[1734102892250,13.13977753,225.14,225.07,13.01428753]
[1734102892856,13.01428753,225.11,225.02,2.24086028]
[1734102893162,13.01428753,225.06,224.99,13.01428753]
[1734102893358,13.01428753,225.07,225.0,13.01428753]
[1734102894451,13.01428753,225.1,225.04,13.01428753]
[1734102894953,13.01428753,225.1,225.03,13.01428753]
[1734102896141,0.12549,225.14,224.96,1.6276]
[1734102896142,0.12549,225.05,224.96,1.6276]
[1734102896350,13.13977753,225.05,224.96,1.6276]
[1734102896649,13.13977753,225.05,224.98,13.01428753]
[1734102896851,0.12549,225.05,224.99,13.01428753]
[1734102897062,13.01428753,225.08,225.01,13.01428753]
[1734102897241,13.01428753,225.08,225.02,13.01428753]
[1734102897437,13.01428753,225.1,225.03,13.01428753]
[1734102898353,0.12549,225.09,225.03,13.01428753]
[1734102899069,0.12549,225.08,225.02,13.01428753]
[1734102899364,0.12549,225.08,225.03,13.01428753]
[1734102899574,0.12549,225.09,225.03,13.01428753]
[1734102900060,0.12549,225.08,225.02,13.01428753]
[1734102900263,13.13977753,225.08,225.01,13.01428753]
[1734102900660,0.12549,225.07,225.01,13.01428753]
[1734102900864,0.12549,225.05,224.98,13.01428753]
[1734102901184,13.13977753,225.05,224.98,13.01428753]
[1734102901343,13.01428753,225.06,224.99,13.01428753]
[1734102901676,13.01428753,225.07,225.0,13.01428753]
[1734102901855,13.13977753,225.06,224.99,13.01428753]
[1734102902055,0.12549,225.03,224.97,13.01428753]
[1734102902940,13.13977753,225.09,225.02,13.01428753]
[1734102903156,0.12549,225.09,225.03,13.01428753]
[1734102903962,13.01428753,225.1,225.04,13.01428753]
[1734102904144,13.01428753,225.13,225.07,13.01428753]
[1734102904554,13.01428753,225.11,225.05,13.01428753]
[1734102904870,13.01428753,225.11,225.04,13.01428753]
[1734102905074,0.12549,225.1,225.04,13.01428753]
[1734102905456,0.12549,225.06,225.0,13.01428753]
[1734102906951,13.01428753,225.09,225.03,13.01428753]
[1734102907164,13.01428753,225.1,225.03,13.01428753]
[1734102907361,13.01428753,225.12,225.05,13.01428753]
[1734102907582,12.7526,225.16,224.96,2.27804513]
[1734102907583,1.649,225.16,225.08,13.01428753]
[1734102907773,13.01428753,225.15,225.08,13.01428753]
[1734102908085,13.01428753,225.13,225.06,13.01428753]
[1734102908251,13.13977753,225.09,225.02,13.01428753]
[1734102908450,11.22919,225.15,224.98,20.0]
[1734102908653,0.12549,225.08,225.03,13.01428753]
[1734102908892,0.12549,225.08,225.04,13.01428753]
[1734102909091,1.649,225.16,225.07,13.01428753]
[1734102909092,13.01428753,225.14,225.07,13.01428753]
[1734102909459,14.66328753,225.16,225.09,13.01428753]
[1734102909655,13.01428753,225.15,225.08,13.01428753]
[1734102909859,13.01428753,225.14,225.08,13.01428753]
[1734102910282,1.649,225.16,225.03,0.66626434]
[1734102910283,13.01428753,225.1,225.03,0.66626434]
[1734102910487,13.01428753,225.1,225.03,13.01428753]
[1734102910693,13.01428753,225.13,225.06,13.01428753]
[1734102910984,13.01428753,225.13,225.0,11.1111]
[1734102910985,0.12549,225.12,225.07,13.01428753]
[1734102912093,13.01428753,225.14,225.07,13.01428753]
[1734102912395,13.01428753,225.14,225.06,13.01428753]
[1734102912560,0.12549,225.13,225.08,13.01428753]
[1734102913372,13.13977753,225.14,225.07,13.01428753]
[1734102913976,1.649,225.16,225.08,13.01428753]
[1734102913977,13.01428753,225.15,225.08,13.01428753]
[1734102914187,0.12549,225.15,225.1,13.01428753]
[1734102914352,0.12549,225.15,225.0,14.99998998]
[1734102914353,0.12549,225.1,225.02,20.0]
[1734102914552,0.12549,225.08,225.02,13.01428753]
[1734102915899,13.01428753,225.09,225.03,13.01428753]
[1734102915900,0.12549,225.09,225.03,13.01428753]
[1734102916076,0.12549,225.09,225.05,13.01428753]
[1734102916596,0.12549,225.11,225.05,13.01428753]
[1734102916967,0.12549,225.11,225.06,13.01428753]
[1734102917163,0.12549,225.11,225.02,0.66634852]
[1734102917164,11.1012,225.2,225.09,13.01428753]
[1734102917363,13.01428753,225.17,225.09,13.01428753]
[1734102917581,13.01428753,225.16,225.09,13.01428753]
[1734102918790,0.12549,225.13,225.07,13.01428753]
[1734102918965,1.6162,225.21,225.02,20.0]
[1734102918966,13.01428753,225.12,225.02,20.0]
[1734102919285,13.01428753,225.13,225.06,13.01428753]
[1734102919491,0.12549,225.12,225.06,13.01428753]
[1734102919859,0.12549,225.12,225.07,13.01428753]
[1734102920087,13.01428753,225.14,225.08,13.01428753]
[1734102920263,13.01428753,225.17,225.1,13.01428753]
[1734102920463,14.63048753,225.21,225.14,13.01428753]
[1734102920870,13.13977753,225.2,225.13,13.01428753]
[1734102921066,0.12549,225.2,225.13,13.01428753]
[1734102921277,13.13977753,225.2,225.13,13.01428753]
[1734102921501,1.6162,225.21,225.09,0.66611112]
[1734102921668,13.01428753,225.25,225.18,13.01428753]
[1734102922066,1.5665,225.26,225.2,13.01428753]
[1734102922464,14.58078753,225.26,225.19,13.01428753]
[1734102922671,1.5665,225.26,225.2,13.01428753]
[1734102922888,19.4529,225.29,225.22,13.01428753]
[1734102923071,32.46718753,225.29,225.22,13.01428753]
[1734102923306,26.01428753,225.29,225.22,13.01428753]
[1734102923500,13.0,225.29,225.23,13.01428753]
[1734102923797,13.0,225.29,225.24,13.01428753]
[1734102924501,0.12549,225.28,225.24,13.01428753]
[1734102925292,13.0,225.29,225.26,13.01428753]
[1734102925481,13.0,225.29,225.27,13.01428753]
[1734102925797,13.0,225.29,225.26,13.01428753]
[1734102925995,13.0,225.29,225.28,13.01428753]
[1734102926171,13.0,225.29,225.28,26.15406506]
[1734102926374,13.0,225.29,225.28,19.09048753]
[1734102926884,13.0,225.29,225.28,13.01428753]
[1734102927600,13.0,225.29,225.25,13.01428753]
[1734102927990,13.0,225.29,225.24,13.01428753]
[1734102928503,13.13977753,225.26,225.19,13.01428753]
[1734102928800,13.13977753,225.26,225.16,8.9933493]
[1734102928801,23.902374,225.28,225.2,13.01428753]
[1734102928972,0.12549,225.28,225.22,13.01428753]
[1734102929171,0.12549,225.28,225.23,13.01428753]
[1734102929997,0.12549,225.28,225.25,13.01428753]
[1734102930491,13.0,225.29,225.25,13.01428753]
[1734102931078,13.0,225.29,225.24,13.01428753]
[1734102931471,0.12549,225.28,225.23,13.01428753]
[1734102931676,0.12549,225.28,225.24,13.01428753]
[1734102932273,0.12549,225.28,225.23,13.01428753]
[1734102932699,0.12549,225.28,225.24,13.01428753]
[1734102932906,0.12549,225.28,225.18,0.66586608]
[1734102932907,23.902374,225.28,225.23,13.01428753]
[1734102933497,23.902374,225.28,225.22,13.01428753]
[1734102934212,23.902374,225.28,225.23,13.01428753]
[1734102934891,36.91666153,225.28,225.21,13.01428753]
[1734102935989,36.91666153,225.28,225.16,7.04331149]
[1734102936196,23.902374,225.26,225.2,13.01428753]
[1734102938484,0.12549,225.26,225.22,13.01428753]
[1734102939594,0.12549,225.27,225.21,13.01428753]
[1734102940104,0.12549,225.25,225.19,13.01428753]
[1734102940415,0.12549,225.25,225.21,13.01428753]
[1734102940716,23.902374,225.27,225.21,13.01428753]
[1734102940911,23.902374,225.27,225.19,13.01428753]
[1734102940912,23.902374,225.25,225.19,13.01428753]
[1734102941415,23.902374,225.26,225.2,13.01428753]
[1734102941814,23.902374,225.26,225.21,13.01428753]
[1734102942000,0.12549,225.26,225.2,13.01428753]
[1734102942694,23.902374,225.26,225.2,13.01428753]
[1734102942895,0.12549,225.24,225.17,13.01428753]
[1734102943110,0.12549,225.24,225.13,13.01428753]
[1734102943111,0.12549,225.19,225.13,13.01428753]
[1734102943318,23.902374,225.19,225.13,13.01428753]
[1734102943620,0.12549,225.19,225.14,13.01428753]
[1734102944291,0.12549,225.19,225.15,13.01428753]
[1734102944521,23.902374,225.21,225.15,13.01428753]
[1734102945608,23.902374,225.19,225.13,13.01428753]
[1734102946513,36.91666153,225.19,225.12,13.01428753]
[1734102947019,0.12549,225.17,225.11,13.01428753]
[1734102947231,23.902374,225.17,225.11,13.01428753]
[1734102947729,23.902374,225.17,225.1,13.01428753]
[1734102949007,23.902374,225.17,225.07,1.5818]
[1734102949008,23.902374,225.17,225.11,13.01428753]
[1734102949320,13.01428753,225.23,225.16,13.01428753]
[1734102949694,13.13977753,225.24,225.16,13.01428753]
[1734102949890,13.01428753,225.21,225.14,13.01428753]
[1734102950096,0.12549,225.2,225.14,13.01428753]
[1734102950303,13.01428753,225.22,225.15,13.01428753]
[1734102950515,13.01428753,225.23,225.16,13.01428753]
[1734102951329,13.01428753,225.24,225.17,13.01428753]
[1734102951807,0.12549,225.22,225.17,13.01428753]
[1734102952319,14.56248753,225.25,225.18,13.01428753]
[1734102952699,14.56248753,225.25,225.19,13.01428753]
[1734102952700,0.12549,225.24,225.19,13.01428753]
[1734102952903,0.12549,225.24,225.18,13.01428753]
[1734102953503,23.902374,225.24,225.18,13.01428753]
[1734102954018,23.776884,225.24,225.19,13.01428753]
[1734102954321,23.776884,225.25,225.2,13.01428753]
[1734102954719,23.902374,225.26,225.2,13.01428753]
[1734102954917,26.01428753,225.29,225.22,13.01428753]
[1734102955123,13.0,225.29,225.24,13.01428753]
[1734102955313,13.0,225.29,225.25,13.01428753]
[1734102956825,13.0,225.29,225.26,13.01428753]
[1734102957006,13.0,225.29,225.2,0.79123536]
[1734102957215,13.0,225.29,225.28,13.01428753]
[1734102959438,13.0,225.29,225.28,26.02857506]
[1734102959639,13.0,225.29,225.28,13.01428753]
[1734102962218,13.0,225.29,225.28,13.67991516]
[1734102962518,0.5341503,225.31,225.29,11.22229]
[1734102962721,0.09214234,225.32,225.31,20.0]
[1734102962922,6.4124,225.45,225.32,20.0]
[1734102963141,14.60858753,225.47,225.4,13.01428753]
[1734102963356,1.5943,225.47,225.41,13.01428753]
[1734102963645,14.60858753,225.47,225.4,13.01428753]
[1734102963840,1.5943,225.47,225.41,13.01428753]
[1734102964821,14.60858753,225.47,225.4,13.01428753]
[1734102965346,23.776884,225.46,225.4,13.01428753]
[1734102965549,23.776884,225.47,225.41,13.01428753]
[1734102965723,36.79117153,225.47,225.4,13.01428753]
[1734102966134,0.12549,225.46,225.4,13.01428753]
[1734102966451,13.01428753,225.41,225.34,13.01428753]
[1734102966747,13.01428753,225.4,225.33,13.01428753]
[1734102966950,13.01428753,225.4,225.34,13.01428753]
[1734102967331,0.12549,225.44,225.34,13.01428753]
[1734102967641,13.01428753,225.4,225.34,13.01428753]
[1734102967828,13.01428753,225.39,225.32,13.01428753]
[1734102968025,13.01428753,225.38,225.31,13.01428753]
[1734102969233,13.01428753,225.39,225.32,13.01428753]
[1734102969454,13.01428753,225.38,225.32,13.01428753]
[1734102970051,13.01428753,225.39,225.32,13.01428753]
[1734102970340,0.12549,225.41,225.33,13.01428753]
[1734102970341,13.01428753,225.4,225.33,13.01428753]
[1734102970518,23.776884,225.39,225.33,13.01428753]
[1734102970950,36.79117153,225.39,225.32,13.01428753]
[1734102971121,13.01428753,225.36,225.29,13.01428753]
[1734102971322,13.01428753,225.33,225.22,0.6656503]
[1734102971545,13.01428753,225.32,225.26,13.01428753]
[1734102971742,13.01428753,225.33,225.26,13.01428753]
[1734102971949,0.12549,225.36,225.26,13.01428753]
[1734102972152,23.776884,225.33,225.27,13.01428753]
[1734102972329,36.79117153,225.33,225.26,13.01428753]
[1734102972849,13.01428753,225.32,225.26,13.01428753]
[1734102973151,13.01428753,225.32,225.25,13.01428753]
[1734102973340,36.79117153,225.31,225.24,13.01428753]
[1734102973539,13.01428753,225.27,225.2,13.01428753]
[1734102974529,23.776884,225.28,225.22,13.01428753]
[1734102974854,23.776884,225.28,225.23,13.01428753]
[1734102975229,13.01428753,225.29,225.23,13.01428753]
[1734102975543,36.79117153,225.31,225.25,13.01428753]
[1734102975750,1.5475,225.32,225.27,13.01428753]
[1734102975946,13.01428753,225.34,225.28,13.01428753]
[1734102977036,0.12549,225.32,225.26,13.01428753]
[1734102977246,23.902374,225.35,225.27,13.01428753]
[1734102977432,23.776884,225.33,225.27,13.01428753]
[1734102978555,13.01428753,225.3,225.23,13.01428753]
[1734102979331,13.01428753,225.34,225.27,13.01428753]
[1734102981059,23.776884,225.32,225.26,13.01428753]
[1734102981238,36.91666153,225.3,225.23,13.01428753]
[1734102981564,36.79117153,225.29,225.22,13.01428753]
[1734102982932,13.01428753,225.28,225.21,13.01428753]
[1734102983260,36.79117153,225.29,225.22,13.01428753]
[1734102983735,13.01428753,225.33,225.26,13.01428753]
[1734102984263,0.12549,225.32,225.26,13.01428753]
[1734102984438,13.01428753,225.34,225.26,13.01428753]
[1734102984636,0.12549,225.33,225.26,13.01428753]
[1734102985161,23.902374,225.33,225.26,13.01428753]
[1734102985745,36.91666153,225.33,225.26,13.01428753]
[1734102986937,13.01428753,225.32,225.25,13.01428753]
[1734102987246,36.91666153,225.33,225.26,13.01428753]
[1734102987944,36.91666153,225.33,225.19,11.1017]
[1734102987945,13.01428753,225.29,225.22,13.01428753]
[1734102988336,13.01428753,225.28,225.21,13.01428753]
[1734102988860,13.01428753,225.25,225.18,13.01428753]
[1734102989356,13.01428753,225.26,225.19,13.01428753]
[1734102989739,0.12549,225.26,225.2,13.01428753]
[1734102989936,23.902374,225.26,225.2,13.01428753]
[1734102990360,13.01428753,225.28,225.21,13.01428753]
[1734102990547,23.776884,225.28,225.22,13.01428753]
[1734102990745,0.12549,225.27,225.21,13.01428753]
[1734102991059,11.0937,225.36,225.26,13.01428753]
[1734102991260,13.01428753,225.35,225.28,13.01428753]
[1734102991454,0.12549,225.34,225.28,13.01428753]
[1734102991663,13.13977753,225.34,225.27,13.01428753]
[1734102992162,11.0937,225.36,225.21,0.66581605]
[1734102992163,13.01428753,225.33,225.26,13.01428753]
[1734102992346,23.902374,225.32,225.26,13.01428753]
[1734102992749,23.902374,225.32,225.27,13.01428753]
[1734102992941,13.01428753,225.36,225.29,13.01428753]
[1734102993143,14.54588753,225.37,225.3,13.01428753]
[1734102993372,13.01428753,225.4,225.32,13.01428753]
[1734102993669,13.01428753,225.39,225.32,13.01428753]
[1734102995472,13.01428753,225.4,225.32,13.01428753]
[1734102996367,13.01428753,225.4,225.33,13.01428753]
[1734102996749,13.01428753,225.43,225.36,13.01428753]
[1734102996967,13.01428753,225.44,225.37,13.01428753]
[1734102997374,13.01428753,225.47,225.4,13.01428753]
[1734102998671,13.01428753,225.48,225.41,13.01428753]
[1734102998992,13.01428753,225.48,225.42,13.01428753]
[1734102999660,13.01428753,225.48,225.41,13.01428753]
[1734103000059,8.0008,225.52,225.36,0.66528249]
[1734103000060,13.01428753,225.47,225.4,13.01428753]
[1734103000480,13.01428753,225.44,225.38,13.01428753]
[1734103000687,13.01428753,225.41,225.34,13.01428753]
[1734103000853,13.01428753,225.39,225.33,13.01428753]
[1734103001257,13.01428753,225.41,225.34,13.01428753]
[1734103002152,13.01428753,225.4,225.34,13.01428753]
[1734103002357,13.01428753,225.39,225.33,13.01428753]
[1734103002972,13.01428753,225.39,225.32,13.01428753]
[1734103003988,13.01428753,225.36,225.29,13.01428753]
[1734103004284,13.01428753,225.35,225.28,13.01428753]
[1734103005083,23.776884,225.4,225.34,13.01428753]
[1734103005284,36.79117153,225.42,225.35,13.01428753]
[1734103005489,13.01428753,225.37,225.26,6.5583]
[1734103005789,13.01428753,225.39,225.32,13.01428753]
[1734103006695,13.01428753,225.4,225.33,13.01428753]
[1734103006990,13.01428753,225.42,225.35,13.01428753]
[1734103007158,7.9686,225.46,225.28,13.67993728]
[1734103007159,0.12549,225.4,225.34,13.01428753]
[1734103008188,23.902374,225.4,225.34,13.01428753]
[1734103009361,36.91666153,225.4,225.33,13.01428753]
[1734103009569,13.01428753,225.37,225.3,13.01428753]
[1734103009869,13.01428753,225.38,225.31,13.01428753]
[1734103010663,13.01428753,225.39,225.32,13.01428753]
[1734103011493,36.91666153,225.4,225.33,13.01428753]
[1734103012190,36.91666153,225.4,225.34,13.01428753]
[1734103012379,36.91666153,225.4,225.27,1.5566]
[1734103012561,36.91666153,225.4,225.18,6.8183593]
[1734103012562,0.12549,225.26,225.18,1.5557]
[1734103012760,36.79117153,225.27,225.19,13.01428753]
[1734103012956,13.01428753,225.27,225.19,13.01428753]
[1734103013170,13.01428753,225.28,225.2,13.01428753]
[1734103013565,13.01428753,225.26,225.19,13.01428753]
[1734103013771,13.01428753,225.25,225.17,13.01428753]
[1734103014086,13.01428753,225.26,225.19,13.01428753]
[1734103014298,13.01428753,225.25,225.18,13.01428753]
[1734103014964,13.01428753,225.26,225.19,13.01428753]
[1734103015387,13.01428753,225.25,225.18,13.01428753]
[1734103016986,0.12549,225.31,225.13,22.81718968]
[1734103016987,6.0601,225.27,225.13,22.81718968]
[1734103017188,13.01428753,225.2,225.13,13.01428753]
[1734103017366,13.01428753,225.2,225.12,8.0959]
[1734103017367,13.01428753,225.25,225.18,13.01428753]
[1734103017569,23.776884,225.25,225.19,13.01428753]
[1734103017769,13.01428753,225.29,225.22,13.01428753]
[1734103018288,13.01428753,225.28,225.21,13.01428753]
[1734103018583,13.01428753,225.27,225.2,13.01428753]
[1734103018785,0.12549,225.26,225.2,13.01428753]
[1734103018976,13.01428753,225.27,225.2,13.01428753]
[1734103019179,13.01428753,225.28,225.21,13.01428753]
[1734103019688,13.01428753,225.27,225.2,13.01428753]
[1734103020292,13.01428753,225.25,225.18,13.01428753]
[1734103020791,13.01428753,225.23,225.16,13.01428753]
[1734103021088,13.01428753,225.25,225.18,13.01428753]
[1734103021293,13.01428753,225.24,225.17,13.01428753]
[1734103021491,13.01428753,225.22,225.15,13.01428753]
[1734103021672,0.12549,225.26,225.14,13.01428753]
[1734103021673,13.01428753,225.21,225.14,13.01428753]
[1734103022065,36.79117153,225.2,225.12,13.01428753]
[1734103022292,13.01428753,225.18,225.11,13.01428753]
[1734103022777,13.01428753,225.19,225.12,13.01428753]
[1734103023486,36.91666153,225.18,225.11,13.01428753]
[1734103023677,13.01428753,225.13,225.05,13.01428753]
[1734103023870,13.01428753,225.13,225.06,13.01428753]
[1734103025293,13.01428753,225.17,225.1,13.01428753]
[1734103025777,0.12549,225.17,225.1,13.01428753]
[1734103025984,13.13977753,225.15,225.08,13.01428753]
[1734103026299,13.01428753,225.17,225.1,13.01428753]